Cogmind - Beta 17.1 @@@ ROGUE MODE // 2026.09.15 @ 15:10:23 Player: 7H-NLC Result: Destroyed by Double Barrel with Battle Rifle Performance ------------- Evolutions (0) 0 Regions Visited (2) 400 Robots Destroyed (9) 45 Value Destroyed (261) 261 Prototype IDs (0) 0 Alien Tech Used (0) 0 Bonus (0) 0 TOTAL SCORE: 706 Bonus ------- None Cogmind --------- Core Integrity 0/250 Matter 7/300 Energy 96/100 System Corruption 3% Temperature Cool (0) Movement Treading (160) Location -10/Subcaves Parts ------- > --- POWER (1) -------- Subdweller Power Source > --- PROPULSION (2) --- Light Treads Light Treads > --- UTILITY (2) ------ (None) > --- WEAPON (2) ------- Assault Rifle Makeshift Spear > --- INVENTORY (5) ---- Subdweller Beam Cannon Subdweller Shrapnel Launcher Ripper Peak State ------------ > --- POWER ------------ Subdweller Power Source > --- PROPULSION ------- Light Treads Light Treads > --- UTILITY ---------- High-capacity Storage Unit Makeshift Kinetic Plating > --- WEAPON ----------- Heavy Assault Rifle Barrage Gun > --- INVENTORY -------- Compact Wheel Subdweller Monowheel Subdweller Monowheel Subdweller Monowheel Seismic Detector Seismic Detector Makeshift Light Armor Plating Scrap Shield Assault Rifle Assault Rifle Assault Rifle Subdweller Machine Gun Makeshift Shrapnel Gun Subdweller Shrapnel Launcher Subdweller Shrapnel Launcher Datajack Ripper Makeshift Spear Scrap Shield Fragment [Rating: 18] Favorites ----------- Power Ion Engine Engine Ion Engine Propulsion Compact Wheel Treads Light Treads Wheel Compact Wheel Utility High-capacity Storage Unit Device Seismic Detector Storage High-capacity Storage Unit Protection Makeshift Kinetic Plating Weapon Assault Rifle Energy Gun Medium Laser Ballistic Gun Assault Rifle Special Weapon Mining Laser Slashing Weapon Ripper Piercing Weapon Makeshift Spear Build | -11 -10 -10 ------- Run | Yrd Mat Sub Slots Evolved . | . . . Power . | . . . Propulsion . | . . . Utility . | . . . Weapon . | . . . Parts Attached 28 | 7 3 18 Power 2 | 1 . 1 Engine 2 | 1 . 1 Core . | . . . Reactor . | . . . Propulsion 5 | 2 . 3 Treads 2 | . . 2 Leg . | . . . Wheel 3 | 2 . 1 Hover . | . . . Flight . | . . . Utility 7 | 2 1 4 Device 2 | 1 . 1 Storage 2 | 1 1 . Processor . | . . . Hackware . | . . . Protection 3 | . . 3 Artifact . | . . . Weapon 14 | 2 2 10 Energy Gun 2 | 2 . . Energy Cannon . | . . . Ballistic Gun 8 | . 2 6 Ballistic Cannon . | . . . Launcher . | . . . Special Weapon 2 | . . 2 Impact Weapon . | . . . Slashing Weapon 1 | . . 1 Piercing Weapon 1 | . . 1 Special Melee Weapon . | . . . Unidentified Prototypes . | . . . Parts Lost 8 | . . 8 Power 1 | . . 1 Propulsion 2 | . . 2 Utility 2 | . . 2 Weapon 3 | . . 3 Highest Loss Streak 2 | . . 2 To Critical Strikes . | . . . Average Backups 14 | 1 7 16 Power . | . . . Propulsion 3 | 1 2 3 Utility 2 | . . 2 Weapon 7 | . 4 8 Tool/Special . | . . . Unused Backups 12 | . . 12 Power 1 | . . 1 Propulsion 3 | . . 3 Utility 1 | . . 1 Weapon 6 | . . 6 Tool/Special 1 | . . 1 Average Slot Usage (%) 99 | . 100 99 Engine 14 | . 14 14 Treads 9 | . . 10 Wheel 18 | . 28 17 Device 10 | . 14 10 Storage 13 | . 14 13 Protection 3 | . . 3 Ballistic Gun 21 | . 26 20 Special Weapon 1 | . . 1 Slashing Weapon 5 | . . 5 Peak Build Rating 18 | 7 8 18 Average Rating 12 | 5 7 13 On Entrance 5 | . 7 8 Avg Prop Armor Cover (%) . | . . . Naked Turns . | . . . Heaviest Build 58 | 14 50 58 Greatest Support 40 | 26 26 40 Greatest Overweight (x) 3 | . 1 3 Average Overweight (x) 1 | . . 1 Largest Inventory Capacity 20 | 8 20 20 Average Capacity 19 | 7 18 19 Most Carried 20 | 4 10 20 Average Carried 16 | 1 7 18 Final Capacity 20 | 8 20 5 Final Carried 10 | 3 10 3 Class Distribution -------------------- 100% | Mutant Dominant Class ---------------- Mutant | -10/Materials Mutant | -10/Subcaves Resources | -11 -10 -10 ----------- Run | Yrd Mat Sub Matter Collected 596 | 110 60 426 Remotely . | . . . Salvage Created 337 | 54 60 223 Parts 21 | 2 2 17 Haulers Intercepted 1 | . 1 . Recyclers Shooed 1 | 1 . . Parts Field Recycled . | . . . Retrieved Matter . | . . . Parts Self-Destructed 7 | . . 7 Prevented . | . . . Parts Restored . | . . . Kills | -11 -10 -10 ------- Run | Yrd Mat Sub Combat Hostiles Destroyed 6 | . . 6 Melee 1 | . . 1 Guns 5 | . . 5 Classes Destroyed 4 | 1 1 2 Tunneler 2 | 2 . . Hauler 1 | . 1 . Sentry 1 | . . 1 Subdweller 5 | . . 5 Best Kill Streak 1 | 1 1 1 Combat Bots Only 1 | . . 1 Max Kills in Single Turn 1 | 1 1 1 Gunslinging . | . . . Exploded . | . . . Melee 1 | . . 1 Uniques/NPCs Destroyed . | . . . Combat | -11 -10 -10 -------- Run | Yrd Mat Sub Hostile Shots Fired 92 | . . 92 Missed 19 | . . 19 Hits 73 | . . 73 Projectile 73 | . . 73 Damage Taken 1437 | . . 1437 Core 252 | . . 252 Absorbed by Shields . | . . . Ignored by Resistances 42 | . . 42 Core Remaining (%) 100 | 100 . . Volleys Fired 79 | 6 4 69 Largest 2 | 2 2 2 Hottest 100 | 90 40 100 Shots Fired 129 | 12 8 109 Gun 101 | 12 8 81 Cannon . | . . . Launcher . | . . . Special 28 | . . 28 Kinetic 89 | . 8 81 Thermal 40 | 12 . 28 Explosive . | . . . Electromagnetic . | . . . Robot Hit Streak 21 | 4 4 21 Robot Miss Streak 4 | 2 4 3 Penetration Max . | . . . Secondary Targets . | . . . Shots Hit Robots 83 | 8 3 72 Core Hits 22 | 3 2 17 Critical Kills . | . . . Critical Parts Destroyed . | . . . Critical Strikes 1 | 1 . . Burn 1 | 1 . . Melee Attacks 62 | . . 62 Impact . | . . . Slashing 60 | . . 60 Piercing 2 | . . 2 Sneak Attacks . | . . . Combat Hostiles . | . . . Follow-up Attacks . | . . . Damage Inflicted 1434 | 98 39 1297 Guns 1243 | 98 39 1106 Cannons . | . . . Explosions . | . . . Melee 191 | . . 191 Ramming . | . . . Kinetic 1145 | . 39 1106 Thermal 98 | 98 . . Explosive . | . . . Electromagnetic . | . . . Impact . | . . . Slashing 164 | . . 164 Piercing 27 | . . 27 Highest Corruption 3 | . . 3 Average Corruption 2 | . . 2 Corruption Purged . | . . . Corruption Blocked . | . . . Effects 1 | . . 1 Message Errors 1 | . . 1 Overload Shots . | . . . Overflow Damage . | . . . Projectiles . | . . . Explosions . | . . . Melee . | . . . Knockbacks . | . . . Impact . | . . . Kinetic . | . . . Secondary . | . . . Self-Inflicted Damage . | . . . Shots . | . . . Rammed . | . . . Targets Rammed . | . . . Kicked . | . . . Crushed . | . . . Highest Temperature 90 | 90 . . Average Temperature 46 | 46 . . Received Heat Transfer 123 | . . 123 Siege Activations . | . . . Martial Activations . | . . . Shielding Activations . | . . . Robots Disrupted . | . . . Combat Hostiles . | . . . Robots Corrupted . | . . . Combat Hostiles . | . . . Parts Fried . | . . . Impact Corruptions . | . . . Robots Melted . | . . . Combat Hostiles . | . . . Parts Melted 1 | 1 . . Heat Transferred 334 | 334 . . Parts Sabotaged . | . . . Parts Stolen . | . . . Parts Stripped . | . . . Power Chain Reactions . | . . . Alert | -11 -10 -10 ------- Run | Yrd Mat Sub Maximum Alert Level . | . . . Low Security (%) 100 | 100 100 . Level 1 . | . . . Level 2 . | . . . Level 3 . | . . . Level 4 . | . . . Level 5 . | . . . High Security . | . . . Max Security . | . . . Peak Influence 7 | 5 7 . Initial 3 | . 3 . Average . | 1 . . Influence Increases 37 | 10 7 20 Destroy 0b10 Robot/C 20 | . . 20 Destroy 0b10 Robot/NC 15 | 10 5 . Destroy Leader 2 | . 2 . Influence Decreases 37 | 5 12 20 Entered New Map 2 | . 2 . Time Decay 35 | 5 10 20 Squads Dispatched 2 | . 2 . Investigation 1 | . 1 . Extermination . | . . . Reinforcement 1 | . 1 . Assault . | . . . Garrison . | . . . Intercept . | . . . Searches Triggered . | . . . Construction Impeded . | . . . Haulers Reinforced . | . . . Active Scanning Responses . | . . . Cargo Convoy Interrupts . | . . . Stealth | -11 -10 -10 --------- Run | Yrd Mat Sub Distress Signals . | . . . Communications Jammed . | . . . Distress Signals . | . . . Times Spotted 10 | . 1 9 Peak Tracking Total 3 | . 1 3 Tactical Retreats . | . . . Traps | -11 -10 -10 ------- Run | Yrd Mat Sub Traps Triggered 3 | . 1 2 Indirectly . | . . . Trap Hack Attempts . | . . . Triggered . | . . . Disarmed . | . . . Reprogrammed . | . . . Reused 1 | . . 1 Traps Extracted . | . . . Installed 1 | . . 1 Triggered . | . . . Machines | -11 -10 -10 ---------- Run | Yrd Mat Sub Machines Disabled . | . . . Max in Single Turn . | . . . Machines Repaired . | . . . Machines Dismantled . | . . . Machines Sabotaged . | . . . Overloaded Fab Kills . | . . . Hacking | -11 -10 -10 --------- Run | Yrd Mat Sub Machines Accessed 4 | . 3 1 Terminals 3 | . 3 . Fabricators . | . . . Repair Stations . | . . . Recycling Units . | . . . Scanalyzers . | . . . Garrison Access . | . . . Total Hacks 10 | . 7 3 Successful 8 | . 5 3 Failed 2 | . 2 . Catastrophic . | . . . Database Lockouts . | . . . Manual 1 | . 1 . Terminals 7 | . 7 . Fabricators . | . . . Repair Stations . | . . . Recycling Units . | . . . Scanalyzers . | . . . Garrison Access . | . . . Terminal Hacks 8 | . 5 3 Record 3 | . . 3 Locate Traps 1 | . 1 . Recall Investigation 1 | . 1 . Hauler Manifests 1 | . 1 . Zone Layout 2 | . 2 . Fabricator Hacks . | . . . Repair Station Hacks . | . . . Recycling Unit Hacks . | . . . Scanalyzer . | . . . Garrison Access Hacks . | . . . Unauthorized Hacks . | . . . Terminals . | . . . Fabricators . | . . . Repair Stations . | . . . Recycling Units . | . . . Scanalyzers . | . . . Garrison Access . | . . . Data Cores Recovered . | . . . Used . | . . . Hacking Detections 1 | . 1 . Full Trace Events . | . . . Feedback Events . | . . . Feedback Blocked . | . . . Robot Schematics Acquired . | . . . Robots Built . | . . . Authchips . | . . . Time . | . . . Total Robot Build Rating . | . . . Part Schematics Acquired . | . . . Parts Built . | . . . Authchips . | . . . Time . | . . . Total Part Build Rating . | . . . Part Studies Acquired . | . . . Parts Repaired . | . . . Time . | . . . Parts Recycled . | . . . Recycled Matter . | . . . Retrieved Matter . | . . . Retrieved Components . | . . . Parts Scanalyzed . | . . . Part Schematics Acquired . | . . . Parts Damaged . | . . . Bothacking | -11 -10 -10 ------------ Run | Yrd Mat Sub Used RIF Installer . | . . . Robots Hacked . | . . . Non-combat . | . . . Combat . | . . . Robot Hacks Applied . | . . . Relay Couplers Released . | . . . Fabnet Peak Effective % . | . . . Robots Rewired . | . . . Allies Hacked . | . . . Hacks Repelled . | . . . Allies | -11 -10 -10 -------- Run | Yrd Mat Sub Total Allies . | . . . Largest Group . | . . . Highest-Rated Group . | . . . Highest-Rated Ally . | . . . Total Orders . | . . . Ally Attacks . | . . . Total Damage . | . . . Kills . | . . . Allies Corrupted . | . . . Allies Melted . | . . . Intel | -11 -10 -10 ------- Run | Yrd Mat Sub Active Infowar (turns) 1735 | 1 289 1445 Seismic 1735 | 1 289 1445 Robot Analysis Total . | . . . Derelict Logs Recovered . | . . . Drone Launches . | . . . Drone Recoveries . | . . . Exploration | -11 -10 -10 ------------- Run | Yrd Mat Sub Turns Passed 2343 | 70 289 1984 Spaces Moved 1376 | 46 251 1079 Core 10 | 10 . . Treads 261 | . . 261 Legs . | . . . Wheels 1105 | 36 251 818 Hover . | . . . Flight . | . . . Fastest Speed 50 | 50 90 105 Average Speed 131 | 81 102 140 Slowest Speed 240 | 90 105 240 Overloaded Moves . | . . . Propulsion Burnouts . | . . . Robots Hopped . | . . . Potential Cave-ins . | . . . Cave-ins Triggered . | . . . Exploration Rate (%) 25 | 3 31 41 Regions Visited 2 Branch Regions 1 Pre-discovered Areas 1 | . . 1 Known Exits Taken . | . . . Unknown Exits Taken 2 | 1 1 . Scrap Searched 8 | . . 8 Spaces Dug 35 | . . 35 Terrain Destroyed 47 | . . 47 Melee 30 | . . 30 Projectile 17 | . . 17 AOE . | . . . Terrain Rammed . | . . . Walls Destroyed . | . . . Machines Disabled . | . . . Actions | -11 -10 -10 --------- Run | Yrd Mat Sub Total 1617 | 63 273 1281 Wait 12 | 1 8 3 Move 1374 | 45 250 1079 Hop . | . . . Pick Up 33 | 4 7 22 Fast Attach 7 | 6 . 1 Attach 8 | 1 . 7 Detach . | . . . Swap 28 | . 3 25 Drop 13 | . 1 12 Fire 79 | 6 4 69 Melee 62 | . . 62 Ram . | . . . Kick . | . . . Crush . | . . . Escape Stasis . | . . . Rewire . | . . . Trap 1 | . . 1 Miscellaneous . | . . . Route ------- -11/Scrapyard -10/Materials (discovered 2 exits: [*Min] / *Sub) -10/Subcaves History --------- Turn | Location | Event 3 | -11/Scrapyard | Discovered new exit (range 15) 71 | -11/Scrapyard | Entered Materials 145 | -10/Materials | Discovered new exit (range 15) 216 | -10/Materials | Discovered new exit (range 6) 309 | -10/Materials | Build established: Mutant 360 | -10/Materials | Entered Subcaves 497 | -10/Subcaves | Disturbed a concealed Subdweller 548 | -10/Subcaves | Shifting Twisted Machinery released Flamer 549 | -10/Subcaves | Shifting Twisted Machinery released Battle Cannon 657 | -10/Subcaves | A swath of the cavern ceiling suddenly collapsed 1436 | -10/Subcaves | Shifting Twisted Machinery released Sub. Shrapnel Launcher 1437 | -10/Subcaves | Shifting Twisted Machinery released Sub. Shrapnel Launcher 1522 | -10/Subcaves | Disturbed a concealed Subdweller 1569 | -10/Subcaves | Disturbed a concealed Subdweller 1676 | -10/Subcaves | Visited Clippyterm 1683 | -10/Subcaves | Learned Factory trap positions 1772 | -10/Subcaves | Learned location of Zion (-6) 1772 | -10/Subcaves | Met a Zionite searching for "candidates" 1940 | -10/Subcaves | Ambushed by Subdweller buried in earth 1965 | -10/Subcaves | Core integrity fell below 50% 2283 | -10/Subcaves | Spotted Battle Cannon Carrier 2284 | -10/Subcaves | Met H3-MLN with WIP Botcube army 2285 | -10/Subcaves | Spotted Double Barrel 2316 | -10/Subcaves | Core integrity fell below 20% 2344 | -10/Subcaves | Destroyed by Double Barrel with Battle Rifle Last Messages --------------- trip to Zion?" World map updated: -6/Zion. 01775_ KA-C6X(u) builds Twisted Machinery. 01941_ YF-3PW(R): "ARGHSUB!" 01960_ Barrage Gun destroyed. 01970_ Sub. Machine Gun shoots sparks and powers down. 01972_ Hvy. Assault Rifle destroyed. 01986_ YF-3PW(R) destroyed. 01988_ The unstable cave ceiling collapses. 01988_ 33 Matter crushed. 02007_ Subatomizers dissect the Sub. Monowheel. 02284_ H3-MLN: "Get out of here! My cube army is not yet complete!" 02304_ Dropped Hcp. Storage Unit. 02305_ Dropped Seismic Detector. 02321_ Destroyed Lgt. Armor Plating. 02321_ Destroyed Shock Rifle. 02326_ FLJ6F#RN/H0DSHE3FOSF ZQQED 02336_ Scrap Shield destroyed. 02338_ Mak. Shrapnel Gun destroyed. 02338_ Acquired Mak. Spear. Map ----- +----------------------------------------------------+ | | | | | | | | | | | | | ?????????????????????????????????????????????????? | | ?????????????????????????????????????????????????? | | ?????????????????????????????????????????????????? | | ?????????????????????????????????????????????????? | | ?????????????????????????????????????????????????? | | ?????????????????????????????????????????????????? | | ?????????????????????????????????????????????????? | | ?????????????????????????????????????????????????? | | ?????????????????????????????????????????????????? | | ?????????????????????????????????????????????????? | | ??????????????????????????###????????????????????? | | ?????????????????????????## ##???????????????????? | | ?????????????????????????#| [#???????????????????? | | ????????????????????????? ##??????????????????? | | #??????????????#####?????? [?????######????????? | | #?????########## #####?? ! ?????## " #????????? | | ####??# ## ## #??#!##?#### " #????????? | | #??# ####M!### # "?######## | | ###?# ##M#### & < #?# # | | ### ##### [@|&[ ## " ### ### | | ##???# =*]/ ##### # #&##"## | | ## ## ##????# ### # & "["## | | ?### #########???# #?## ####[#"&=%# | | ???# ##??????????# #?## ##??# #!" "# | | ??# #????????? ##?# ## #???# # ""## | | #?## ##????????# ###??# ### ##??# #### | | #??###?????????## ##????# ### #??# | | #???????????????# ??????#### ## ##??## ##### | | #???????????????# ?????????# ## #??# #??# | | #???????????????## ?????????# "# ##?# ##?# | | #????????????????## #?????????## "" " ### ] ### | | ?????????????????###???????????## ##"# # | | ???????????????????????????????# """" " "" | | ?????????????????????????????????# ##""" "" ## | | ?????????????????????????????????# ############? | | ?????????????????????????????????# #???????????? | | ?????????????????????????????????# ##???????????? | | ?????????????????????????????????# "##???????????? | | ?????????????????????????????????#" "###?????????? | | ?????????????????????????????????#"" ""#?????????? | | ?????????????????????????????????##" "##?????????? | | ??????????????????????????????????## #??????????? | | ??????????????????????????????????# ##??????????? | | ??????????????????????????????????# #??????????? | +----------------------------------------------------+ Best States ------------- Heat Dissipation 25 Energy Generation 15 Energy Capacity 250 Matter Stores 300 Matter Capacity 300 Sight Range 16 Terrain Scan Density 10 Armor Coverage 800 Resistance: KI 10 Evasion (%) 50 Recoil Reduction 2 Item Schematics ----------------- None Robot Schematics ------------------ None Fabricated ------------ Nothing Repaired ---------- Nothing Studied --------- None Alien Tech Used ----------------- None Achievements -------------- None Challenges ------------ None Game ------ Seed ChromaticLinearExoskeleton Manual? 0 Play Time 00:15:44 Cumulative 499.3 hours Start 2026.09.15 @ 14:55:57 End 2026.09.15 @ 15:10:23 Sessions 1 Manual Loads 0 Difficulty Rogue Special Mode None Game No. 371 Rogue 371 Adventurer 0 Explorer 0 Win Type - Total 10 Types 4/0/4/2/0/0/0/0/0/0 Lore% 64 Gallery% 72 Achievement% 60 Wizard Run 0 Options --------- Layout 2 ASCII 0 Keyboard 1 Movement Vi Keybinds 0 Fullscreen 2 Font 32/Smallcaps Map View 77x44 Zoom Use 0% Tactical HUD 1 Map Filters NONE Filters NONE Steam 1 RUN: 69ab3212-03e4-4f09-bf60-f8194328aaeb